fUSD/lending_fUSD_20251113
["ID","MTS","AMOUNT","RATE_DAILY","PERIOD"]
[393869326,1763053844174,-160.97,0.00022,2]
[393869327,1763053844183,-490.2337756,0.000221,2]
[393869328,1763053844194,-2000.0,0.000221,2]
[393869329,1763053844204,-238.20918269,0.0002211,2]
[393869330,1763053844213,-166.66,0.00022158,2]
[393869331,1763053844222,-200.0,0.00022225,2]
[393869332,1763053844231,-299.8,0.00022325,2]
[393869333,1763053844240,-361.55307252,0.00022383,2]
[393869334,1763053844250,-22142.07256522,0.00022461,2]
[393869335,1763053844260,-10259.09501995,0.00022461,2]
[393869336,1763053844269,-500.0,0.00022473,2]
[393869337,1763053844279,-500.0,0.00022473,2]
[393869338,1763053844287,-506.0,0.0002262,2]
[393869339,1763053844296,-478.69779641,0.00022698,2]
[393869340,1763053844306,-500.0,0.00022737,2]
[393869341,1763053844315,-500.0,0.00022737,2]
[393869342,1763053844324,-505.0,0.00022822,2]
[393869343,1763053844333,-827.0,0.00023182,2]
[393869344,1763053844343,-299.8,0.00023255,2]
[393869345,1763053844352,-1000.0,0.000233,2]
[393869346,1763053844361,-827.0,0.00023314,2]
[393869347,1763053844370,-505.0,0.00023346,2]
[393869348,1763053844379,-1000.0,0.00023464,2]
[393869349,1763053844388,-827.0,0.00023522,2]
[393869350,1763053844397,-14697.32588527,0.00023604,2]
[393869351,1763053844406,-827.0,0.00023685,2]
[393869352,1763053844415,-1804.0,0.00023751,2]
[393869353,1763053844424,-827.0,0.00023783,2]
[393869354,1763053844434,-827.0,0.00023792,2]
[393869355,1763053844443,-827.0,0.00023863,2]
[393869356,1763053844453,-1000.0,0.000239,2]
[393869357,1763053844462,-600.0,0.000239,8]
[393869358,1763053844473,-1663.0,0.000239,2]
[393869359,1763053844482,-934.24,0.00023929,2]
[393869360,1763053844492,-1804.0,0.00023955,2]
[393869361,1763053844501,-723.88379578,0.00023971,2]
[393869362,1763053844511,-233.27441,0.00023999,2]
[393869363,1763053844520,-1804.0,0.00024083,2]
[393869364,1763053844529,-829.0,0.00024085,2]
[393869365,1763053844538,-1804.0,0.00024157,2]
[393869366,1763053844548,-299.8,0.00024185,2]
[393869367,1763053844557,-22142.07256522,0.00024223,2]
[393869368,1763053844567,-1804.0,0.00024323,2]
[393869369,1763053844576,-1804.0,0.00024323,2]
[393869370,1763053844595,-1000.0,0.000244,2]
[393869371,1763053844605,-434.0,0.00024438,2]
[393869372,1763053844615,-1804.0,0.00024447,2]
[393869373,1763053844624,-1804.0,0.00024535,2]
[393869374,1763053844633,-1804.0,0.00024591,2]
[393869375,1763053844642,-1804.0,0.00024603,2]
[393869376,1763053844653,-200.0,0.00024611,2]
[393869377,1763053844664,-1046.56,0.00024658,30]
[393869378,1763053844673,-1000.0,0.00024658,2]
[393869379,1763053844683,-173.65,0.00024658,2]
[393869380,1763053844692,-151.0,0.00024658,7]
[393869381,1763053844702,-151.0,0.00024658,7]
[393869382,1763053844711,-169.20446293,0.00024699,2]
[393869383,1763053844720,-1579.41889128,0.000247,2]
[393869384,1763053844730,-502.14268274,0.00024773,2]
[393869385,1763053844739,-5837.0,0.00024799,2]
[393869386,1763053844748,-500.0,0.00024799,2]
[393869387,1763053844758,-500.0,0.00024799,2]
[393869388,1763053844767,-151.0,0.00024799,7]
[393869389,1763053844776,-509.059827,0.00024799,7]
[393869390,1763053844786,-509.059827,0.00024799,7]
[393869391,1763053844795,-509.059827,0.00024799,7]
[393869392,1763053844804,-509.059827,0.00024799,7]
[393869393,1763053844813,-151.0,0.00024799,7]
[393869394,1763053844823,-151.0,0.000248,7]
[393869395,1763053844832,-151.0,0.000248,7]
[393869396,1763053844841,-1502.709532,0.000248,7]
[393869397,1763053844851,-1502.709532,0.000248,7]
[393869398,1763053844860,-1502.709532,0.000248,7]
[393869399,1763053844869,-1502.709532,0.000248,7]
[393869400,1763053844878,-151.0,0.000248,7]
[393869401,1763053844887,-240.080076,0.000248,7]
[393869402,1763053844896,-184.66,0.000248,11]
[393869403,1763053844906,-28817.51554878,0.000248,3]
[393869416,1763053846243,-2256.90522239,0.00017172,2]
[393869417,1763053846455,-515.85092102,0.00017172,2]
[393869418,1763053846510,-317.38173342,0.00017172,2]
[393869433,1763053928001,-156.60627818,0.00017171,2]
[393869439,1763053963023,2000.0,0.00040719,30]
[393869444,1763054004911,509.3648031,0.000159,2]
[393869445,1763054005196,505.0,0.000159,2]
[393869446,1763054005465,505.0,0.000159,2]
[393869447,1763054006005,505.0,0.000159,2]
[393869448,1763054006277,505.0,0.000159,2]
[393869453,1763054026536,628.51,0.00011335,2]
[393869454,1763054026783,628.51,0.00011932,2]
[393869455,1763054027002,628.51,0.00012528,2]
[393869456,1763054027217,628.51,0.00013125,2]
[393869457,1763054027492,628.51,0.00013721,2]
[393869458,1763054027708,628.51,0.00014318,2]
[393869459,1763054027926,628.51,0.00014915,2]
[393869460,1763054028148,628.51,0.00015511,2]
[393869461,1763054028367,628.51,0.00016108,2]
[393869462,1763054028572,628.51,0.00016704,2]
[393869468,1763054054579,-270.21107541,0.00017072,2]
[393869469,1763054054605,-361.94189789,0.00017072,2]
[393869471,1763054067452,-300.0,0.0001717,2]
[393869472,1763054068236,11071.03628261,0.00017072,2]
[393869475,1763054080509,-354.02964418,0.00017171,2]
[393869476,1763054080535,-500.0,0.00017171,2]
[393869477,1763054080563,-466.51875062,0.00017171,2]
[393869478,1763054080589,-500.0,0.00017171,2]
[393869479,1763054080619,-500.0,0.00017171,2]
[393869480,1763054080645,-500.0,0.00017171,2]
[393869481,1763054080671,-500.0,0.00017171,2]
[393869482,1763054080694,-311.72007248,0.00017171,2]
[393869483,1763054080719,-500.0,0.00017171,2]
[393869484,1763054080744,-500.0,0.00017171,2]
[393869485,1763054080769,-500.0,0.00017171,2]
[393869486,1763054080795,-500.0,0.00017171,2]
[393869487,1763054080821,-500.0,0.00017171,2]
[393869488,1763054080847,-500.0,0.00017171,2]
[393869489,1763054080876,-500.0,0.00017171,2]
[393869490,1763054080901,-477.12963961,0.00017171,2]
[393869491,1763054080926,-500.0,0.00017171,2]
[393869492,1763054080952,-500.0,0.00017171,2]
[393869493,1763054080976,-500.0,0.00017171,2]
[393869494,1763054081001,-477.12963961,0.00017171,2]
[393869495,1763054081027,-500.0,0.00017171,2]
[393869496,1763054081054,-500.0,0.00017171,2]
[393869497,1763054081079,-500.0,0.00017171,2]
[393869498,1763054081105,-500.0,0.00017171,2]
[393869499,1763054081131,-477.12963961,0.00017171,2]
[393869500,1763054081156,-500.0,0.00017171,2]
[393869501,1763054081185,-225900.15335798,0.00017172,2]
[393869522,1763054467939,532.78,0.00013699,2]
[393869523,1763054470786,450.0,0.00040712,120]
[393869550,1763054730559,-250.0,0.00017,2]
[393869551,1763054730589,-250.0,0.00017018,2]
[393869552,1763054730619,-195.0,0.00017036,2]
[393869553,1763054730649,-226.14861161,0.00017068,2]
[393869554,1763054730679,-300.0,0.00017071,2]
[393869555,1763054730708,-1200.0,0.00017071,2]
[393869556,1763054731052,-36.07734557,0.00017072,2]
[393869557,1763054731238,-1600.36162653,0.00017072,2]
[393869558,1763054733703,-1672.51631767,0.00017072,2]
[393869559,1763054733765,-3345.03263534,0.00017072,2]
[393869560,1763054733801,-3309.94472932,0.00017072,2]
[393869561,1763054733821,-151.0,0.00017161,2]
[393869562,1763054733830,-151.0,0.00017161,2]
[393869563,1763054733840,-151.0,0.00017161,2]
[393869564,1763054733850,-151.0,0.00017161,2]
[393869565,1763054733859,-151.0,0.00017161,2]
[393869566,1763054733869,-151.0,0.00017161,2]
[393869567,1763054733878,-151.0,0.00017161,2]
[393869568,1763054733887,-263.62259856,0.00017161,2]
[393869570,1763054761354,-500.0,0.00017171,2]
[393869571,1763054761392,-500.0,0.00017171,2]
[393869572,1763054761427,-500.0,0.00017171,2]
[393869573,1763054761460,-500.0,0.00017171,2]
[393869574,1763054761491,-477.12963961,0.00017171,2]
[393869575,1763054761522,-500.0,0.00017171,2]
[393869576,1763054761552,-500.0,0.00017171,2]
[393869577,1763054761582,-500.0,0.00017171,2]
[393869578,1763054761611,-500.0,0.00017171,2]
[393869579,1763054761642,-477.12963961,0.00017171,2]
[393869580,1763054761905,-500.0,0.00017171,2]
[393869581,1763054761937,-500.0,0.00017171,2]
[393869582,1763054761970,-500.0,0.00017171,2]
[393869583,1763054762002,-477.12963961,0.00017171,2]
[393869584,1763054762034,-500.0,0.00017171,2]
[393869585,1763054762065,-500.0,0.00017171,2]
[393869586,1763054762095,-500.0,0.00017171,2]
[393869587,1763054762131,-500.0,0.00017171,2]
[393869588,1763054762163,-477.12963961,0.00017171,2]
[393869589,1763054762194,-500.0,0.00017171,2]
[393869590,1763054762294,-500.0,0.00017171,2]
[393869591,1763054762325,-500.0,0.00017171,2]
[393869592,1763054762358,-500.0,0.00017171,2]
[393869593,1763054762391,-500.0,0.00017171,2]
[393869594,1763054762431,-477.12963961,0.00017171,2]
[393869595,1763054762467,-500.0,0.00017171,2]
[393869596,1763054762502,-500.0,0.00017171,2]
[393869597,1763054762534,-500.0,0.00017171,2]
[393869598,1763054762565,-477.12963961,0.00017171,2]
[393869599,1763054762599,-500.0,0.00017171,2]
[393869600,1763054762710,-500.0,0.00017171,2]
[393869601,1763054762741,-500.0,0.00017171,2]
[393869602,1763054762772,-500.0,0.00017171,2]
[393869603,1763054762808,-500.0,0.00017171,2]
[393869604,1763054762842,-477.12963961,0.00017171,2]
[393869605,1763054762877,-500.0,0.00017171,2]
[393869606,1763054762914,-500.0,0.00017171,2]
[393869607,1763054762947,-500.0,0.00017171,2]
[393869608,1763054762979,-500.0,0.00017171,2]
[393869609,1763054763010,-477.12963961,0.00017171,2]
[393869610,1763054763062,-500.0,0.00017171,2]
[393869611,1763054763093,-500.0,0.00017171,2]
[393869612,1763054763130,-500.0,0.00017171,2]
[393869613,1763054763161,-500.0,0.00017171,2]
[393869614,1763054763194,-500.0,0.00017171,2]
[393869615,1763054763225,-500.0,0.00017171,2]
[393869616,1763054763256,-500.0,0.00017171,2]
[393869617,1763054763288,-454.25927921,0.00017171,2]
[393869618,1763054763321,-500.0,0.00017171,2]
[393869619,1763054763353,-500.0,0.00017171,2]
[393869620,1763054763490,300.0,0.0001717,2]
[393869621,1763054764596,-160.11252273,0.00017171,2]
[393869622,1763054764614,-91.49144158,0.00017171,2]
[393869623,1763054764833,-248.39603569,0.00017171,2]
[393869624,1763054764870,-500.0,0.00017171,2]
[393869625,1763054764903,-500.0,0.00017171,2]
[393869626,1763054764936,-500.0,0.00017171,2]
[393869627,1763054764970,-500.0,0.00017171,2]
[393869628,1763054765002,-252.3662661,0.00017171,2]
[393869629,1763054765034,-500.0,0.00017171,2]
[393869630,1763054765062,-500.0,0.00017171,2]
[393869631,1763054765090,-500.0,0.00017171,2]
[393869632,1763054765124,-500.0,0.00017171,2]
[393869633,1763054765156,-498.48539642,0.00017171,2]
[393869634,1763054765203,-1.51460358,0.00017171,2]
[393869635,1763054765236,-565.88962843,0.00017171,2]
[393869636,1763054765269,-500.0,0.00017171,2]
[393869637,1763054765303,-500.0,0.00017171,2]
[393869638,1763054765334,-500.0,0.00017171,2]
[393869639,1763054765367,-500.0,0.00017171,2]
[393869640,1763054765399,-500.0,0.00017171,2]
[393869641,1763054765573,-500.0,0.00017171,2]
[393869642,1763054765611,-500.0,0.00017171,2]
[393869643,1763054765645,-500.0,0.00017171,2]
[393869644,1763054765676,-365.20153598,0.00017171,2]
[393869645,1763054766274,-134.79846402,0.00017171,2]
[393869646,1763054766284,-1.51460358,0.00017171,2]
[393869647,1763054767476,-498.48539642,0.00017171,2]
[393869648,1763054767508,-500.0,0.00017171,2]
[393869649,1763054767544,-500.0,0.00017171,2]
[393869650,1763054767574,-500.0,0.00017171,2]
[393869651,1763054767605,-747.11275695,0.00017171,2]
[393869652,1763054767636,-747.11275695,0.00017171,2]
[393869653,1763054767666,-747.11275695,0.00017171,2]
[393869654,1763054767696,-747.11275695,0.00017171,2]
[393869655,1763054767775,-747.11275695,0.00017171,2]
[393869658,1763054767806,-747.11275695,0.00017171,2]
[393869659,1763054767838,-747.11275695,0.00017171,2]
[393869660,1763054767871,-747.11275695,0.00017171,2]
[393869661,1763054767904,-747.11275695,0.00017171,2]
[393869662,1763054767936,-747.11275695,0.00017171,2]
[393869663,1763054767963,-500.0,0.00017171,2]
[393869664,1763054768073,-747.11275692,0.00017171,2]
[393869665,1763054768103,-522.24973436,0.00017171,2]
[393869666,1763054768131,-454.88137231,0.00017171,2]
[393869667,1763054768158,-301.52327279,0.00017171,2]
[393869668,1763054768185,-500.0,0.00017171,2]
[393869669,1763054768341,-212.61,0.00017171,2]
[393869682,1763054815477,4523.25572724,0.000162,5]
[393869683,1763054815500,476.74562915,0.000162,5]
[393869685,1763054825736,300.0,0.00017171,2]
[393869691,1763054873783,9223.26437085,0.00017,2]
[393869692,1763054873808,10000.01,0.00017,2]
[393869693,1763054873846,1731.03567272,0.00017,2]
[393869715,1763054918743,8268.97432728,0.00015,3]
[393869716,1763054918767,10000.01,0.00015,3]
[393869717,1763054918790,10000.01,0.00015,3]
[393869718,1763054918814,10000.01,0.00015,3]
[393869719,1763054918839,10000.01,0.00015,3]
[393869720,1763054918864,396.04327368,0.00015,3]
[393869815,1763054957716,-191009.70876519,0.00017172,2]
[393869816,1763054957737,-500.0,0.00017172,2]
[393869817,1763054957760,-500.0,0.00017172,2]
[393869818,1763054957780,-500.0,0.00017172,2]
[393869819,1763054957801,-500.0,0.00017172,2]
[393869820,1763054957821,-500.0,0.00017172,2]
[393869821,1763054957841,-500.0,0.00017172,2]
[393869822,1763054957862,-500.0,0.00017172,2]
[393869823,1763054957883,-500.0,0.00017172,2]
[393869824,1763054957903,-500.0,0.00017172,2]
[393869825,1763054957922,-500.0,0.00017172,2]
[393869826,1763054957941,-500.0,0.00017172,2]
[393869827,1763054957961,-500.0,0.00017172,2]
[393869828,1763054957980,-500.0,0.00017172,2]
[393869829,1763054958001,-500.0,0.00017172,2]
[393869830,1763054958022,-500.0,0.00017172,2]
[393869831,1763054958043,-500.0,0.00017172,2]
[393869832,1763054958064,-500.0,0.00017172,2]
[393869833,1763054958084,-500.0,0.00017172,2]
[393869834,1763054958104,-500.0,0.00017172,2]
[393869835,1763054958124,-500.0,0.00017172,2]
[393869836,1763054958144,-500.0,0.00017172,2]
[393869837,1763054958163,-500.0,0.00017172,2]
[393869838,1763054958183,-500.0,0.00017172,2]
[393869839,1763054958203,-500.0,0.00017172,2]
[393869840,1763054958224,-500.0,0.00017172,2]
[393869841,1763054958247,-500.0,0.00017172,2]
[393869842,1763054958272,-500.0,0.00017172,2]
[393869843,1763054958304,-500.0,0.00017172,2]
[393869844,1763054958328,-500.0,0.00017172,2]
[393869845,1763054958351,-500.0,0.00017172,2]
[393869846,1763054958372,-500.0,0.00017172,2]
[393869847,1763054958394,-500.0,0.00017172,2]
[393869848,1763054958416,-500.0,0.00017172,2]
[393869849,1763054958438,-500.0,0.00017172,2]
[393869850,1763054958463,-500.0,0.00017172,2]
[393869851,1763054958485,-500.0,0.00017172,2]
[393869852,1763054958509,-500.0,0.00017172,2]
[393869853,1763054958532,-500.0,0.00017172,2]
[393869854,1763054958554,-500.0,0.00017172,2]
[393869855,1763054958575,-500.0,0.00017172,2]
[393869856,1763054958596,-500.0,0.00017172,2]
[393869857,1763054958616,-500.0,0.00017172,2]
[393869858,1763054958636,-500.0,0.00017172,2]
[393869859,1763054958657,-500.0,0.00017172,2]
[393869860,1763054958679,-500.0,0.00017172,2]
[393869861,1763054958706,-500.0,0.00017172,2]
[393869862,1763054958728,-500.0,0.00017172,2]
[393869863,1763054958751,-500.0,0.00017172,2]
[393869864,1763054958773,-500.0,0.00017172,2]
[393869865,1763054958794,-500.0,0.00017173,2]
[393869866,1763054958816,-1000.0,0.00017173,2]
[393869867,1763054958838,-33305.0021,0.00017173,2]
[393869868,1763054958861,-500.0,0.00017272,2]
[393869869,1763054958883,-500.0,0.00017272,2]
[393869870,1763054958905,-500.0,0.00017272,2]
[393869871,1763054958926,-511.97836069,0.00017272,2]
[393869872,1763054958947,-500.0,0.00017272,2]
[393869873,1763054958969,-515.01217463,0.00017272,2]
[393869874,1763054958991,-628.51,0.00017301,2]
[393869875,1763054959013,-500.0,0.000178,6]
[393869876,1763054959035,-628.51,0.00017897,2]
[393869877,1763054959241,-1100.0,0.000179,6]
[393869878,1763054959262,-500.0,0.00017973,2]
[393869879,1763054959283,-510.09371407,0.00017973,2]
[393869880,1763054959305,-500.0,0.00017973,2]
[393869881,1763054959330,-320.45023156,0.00017999,2]
[393869882,1763054959351,-514.80579025,0.00017999,2]
[393869883,1763054959371,-500.0,0.00017999,2]
[393869884,1763054959392,-500.0,0.00017999,2]
[393869885,1763054959413,-500.0,0.00017999,2]
[393869886,1763054959434,-500.0,0.00017999,2]
[393869887,1763054959454,-304.03795799,0.00017999,2]
[393869888,1763054959481,-478151.89090562,0.00018,2]
[393870104,1763054994696,-33305.0021,0.00017072,2]
[393870105,1763054994717,-6746.75649132,0.00017994,2]
[393870106,1763054994740,-139948.24140868,0.00018,2]
[393870127,1763055032172,-503.0025,0.00017072,2]
[393870133,1763055032280,-603.40434,0.00017072,2]
[393870134,1763055032292,-545.31,0.00017072,2]
[393870135,1763055032303,-352.59879329,0.00017072,2]
[393870136,1763055032321,-46600.6669377,0.00017072,2]
[393870137,1763055032332,-1534.72977291,0.00017072,2]
[393870138,1763055032344,-407.10642473,0.00017072,2]
[393870139,1763055032355,-1652.25305,0.00017072,2]
[393870140,1763055032367,-5034.4802746,0.00017072,2]
[393870149,1763055032636,-962.66950112,0.00017072,2]
[393870152,1763055032647,-2216.93619533,0.00017072,2]
[393870154,1763055032658,-1320.62259856,0.00017072,2]
[393870227,1763055033373,500.0,0.00017071,2]
[393870231,1763055033408,500.0,0.00017071,2]
[393870235,1763055033438,500.0,0.00017071,2]
[393870241,1763055033491,500.0,0.00017071,2]
[393870248,1763055033548,500.0,0.00017071,2]
[393870253,1763055033590,500.0,0.00017071,2]
[393870258,1763055033626,500.0,0.00017071,2]
[393870262,1763055033657,500.0,0.00017071,2]
[393870267,1763055033696,500.0,0.00017071,2]
[393870270,1763055033747,500.0,0.00017071,2]
[393870271,1763055033781,500.0,0.00017071,2]
[393870272,1763055033815,500.0,0.00017071,2]
[393870274,1763055033849,500.0,0.00017071,2]
[393870286,1763055033948,471.0329244,0.00017071,2]
[393870291,1763055033989,500.0,0.00017071,2]
[393870296,1763055034030,500.0,0.00017071,2]
[393870414,1763055035124,-261.95553024,0.00017072,2]
[393870734,1763055038264,-845.56872213,0.00017072,2]
[393870940,1763055040263,-435.88463301,0.00017072,2]
[393870950,1763055040322,-3414.08,0.00017072,2]
[393870954,1763055040334,-1003.28648453,0.00017072,2]
[393870994,1763055040653,-10071.0,0.00017072,2]
[393871092,1763055044264,500.0,0.00017071,2]
[393871096,1763055046253,-87386.38870817,0.00017072,2]
[393871098,1763055046656,-73144.7674934,0.00017072,2]
[393871099,1763055046669,-35264.84852492,0.00017072,2]
[393871105,1763055047291,-418.20016589,0.00017072,2]
[393871106,1763055047340,-6032.4,0.00017072,2]
[393871107,1763055067831,-139987.83934947,0.00017072,2]
[393871108,1763055067854,-1000.0,0.00017072,2]
[393871109,1763055067876,-300.0,0.00017999,2]
[393871110,1763055067898,-1200.0,0.00017999,2]
[393871111,1763055067919,-300.0,0.00017999,2]
[393871112,1763055067941,-18212.16065053,0.00018,2]
[393871113,1763055120259,-8967.53938896,0.000179,2]
[393871114,1763055120282,-42032.46061104,0.00018,2]
[393871115,1763055121057,1528.9770756,0.00016972,2]
[393871116,1763055121080,2319.4939244,0.00016972,2]
[393871117,1763055128083,-500.0,0.00017172,2]
[393871118,1763055133482,234.6117,0.00016972,2]
[393871119,1763055169719,-316.69916068,0.000179,2]
[393871120,1763055169739,-3563.7585,0.000179,2]
[393871121,1763055169760,-300.0,0.00017999,2]
[393871122,1763055169781,-500.0,0.00017999,2]
[393871123,1763055169802,-500.0,0.00017999,2]
[393871124,1763055169821,-500.0,0.00017999,2]
[393871125,1763055169842,-500.0,0.00017999,2]
[393871126,1763055169862,-372884.95105746,0.00018,2]
[393871127,1763055169882,-3757.71,0.00018,2]
[393871130,1763055176419,459.5899,0.000179,2]
[393871131,1763055180356,500.0,0.00017172,2]
[393871132,1763055184162,40217.29138186,0.00016972,2]
[393871133,1763055184194,379782.70861814,0.00016972,2]
[393871148,1763055276040,150.0,0.00030137,120]
[393871150,1763055353777,10000.01,0.00016972,2]
[393871151,1763055353803,10000.01,0.00016972,2]
[393871152,1763055353837,10000.01,0.00016972,2]
[393871153,1763055353866,10000.01,0.00016972,2]
[393871154,1763055353892,10000.01,0.00016972,2]
[393871155,1763055353917,10000.01,0.00016972,2]
[393871156,1763055353943,10000.01,0.00016972,2]
[393871157,1763055353969,10000.01,0.00016972,2]
[393871158,1763055353995,10000.01,0.00016972,2]
[393871159,1763055354022,10000.01,0.00016972,2]
[393871160,1763055354054,319999.9,0.00016972,2]
[393871219,1763055447635,10000.0,0.00040715,30]
[393871531,1763056231534,-300.0,0.00017171,2]
[393871532,1763056231545,-200.65,0.00017171,2]
[393871534,1763056231557,-999.35,0.00017171,2]
[393871535,1763056231566,-106.70125829,0.00017171,2]
[393871537,1763056231578,-193.29874171,0.00017171,2]
[393871538,1763056231588,-156.93858753,0.00017171,2]
[393871540,1763056231599,-38.06141247,0.00017171,2]
[393871541,1763056231608,-563.94078753,0.00017171,2]
[393871552,1763056231860,-401.04,0.00017171,2]
[393871776,1763056237656,-582.23102044,0.00017171,2]
[393871778,1763056237665,-195.0,0.00017172,2]
[393871779,1763056237674,-211.89308493,0.00017172,2]
[393871780,1763056237721,-114.90902402,0.00017172,2]
[393871781,1763056237731,-527.80203841,0.00017172,2]
[393871782,1763056237741,-183.69568692,0.00017172,2]
[393871783,1763056237750,-367.39325065,0.00017172,2]
[393871784,1763056237762,-132.60674935,0.00017172,2]
[393871785,1763056237771,-500.0,0.00017172,2]
[393871786,1763056237780,-24434.92475065,0.00017724,2]
[393871787,1763056237870,-233.75405033,0.00017724,2]
[393871788,1763056237886,-1103.87488642,0.00017724,2]
[393871799,1763056239491,-2589.4087975,0.00017724,2]
[393871800,1763056239502,-150.0,0.00017873,2]
[393871801,1763056239511,-1000.0,0.000179,2]
[393871802,1763056239521,-550.0,0.00017998,2]
[393871803,1763056239531,-500.0,0.00017999,2]
[393871804,1763056239540,-500.0,0.00017999,2]
[393871805,1763056239551,-500.0,0.00017999,2]
[393871806,1763056239560,-500.0,0.00017999,2]
[393871807,1763056239570,-500.0,0.00017999,2]
[393871808,1763056239579,-500.0,0.00017999,2]
[393871809,1763056239590,-500.0,0.00017999,2]
[393871810,1763056239600,-500.0,0.00017999,2]
[393871811,1763056239610,-500.0,0.00017999,2]
[393871812,1763056239619,-500.0,0.00017999,2]
[393871813,1763056239630,-500.0,0.00017999,2]
[393871814,1763056239640,-500.0,0.00017999,2]
[393871815,1763056239650,-500.0,0.00017999,2]
[393871816,1763056239660,-500.0,0.00017999,2]
[393871817,1763056239669,-550.62677967,0.00017999,2]
[393871818,1763056239679,-698.59407,0.00018,2]
[393871819,1763056239688,-450.0,0.0001801,2]
[393871820,1763056239698,-190.62,0.00018387,2]
[393871821,1763056239708,-31768.66,0.00018401,2]
[393871822,1763056239717,-210.52,0.0001841,2]
[393871823,1763056239727,-444.74,0.00018435,2]
[393871824,1763056239737,-5613.2,0.00018449,2]
[393871825,1763056239746,-429.88,0.00018481,2]
[393871826,1763056239756,-628.51,0.00018494,2]
[393871827,1763056239765,-188.0,0.00018548,2]
[393871828,1763056239774,-3823.88,0.00018551,2]
[393871829,1763056239784,-2000.0,0.000186,2]
[393871830,1763056239794,-359.96,0.00018662,2]
[393871831,1763056239803,-420.0,0.00018751,2]
[393871832,1763056239812,-1680.0,0.00018844,2]
[393871833,1763056239821,-250.0,0.00018888,2]
[393871834,1763056239835,-195.0,0.00018888,2]
[393871835,1763056239845,-266.910952,0.00018888,2]
[393871836,1763056239855,-2500.0,0.00018888,2]
[393871837,1763056239870,-195.0,0.00018888,2]
[393871838,1763056239880,-300.62660903,0.00018888,2]
[393871839,1763056239890,-250.0,0.00018888,2]
[393871840,1763056239900,-195.0,0.00018888,2]
[393871841,1763056239912,-2220.9847708,0.00019,2]
[393871842,1763056239922,-216.99779746,0.00019,2]
[393871843,1763056239932,-935.0,0.00019078,2]
[393871844,1763056239943,-628.51,0.00019091,2]
[393871845,1763056239953,-444.74,0.00019127,2]
[393871846,1763056239963,-1742.76,0.00019243,2]
[393871847,1763056239973,-500.7937568,0.0001935,2]
[393871848,1763056239983,-500.0,0.0001935,2]
[393871849,1763056239993,-500.0,0.00019473,2]
[393871850,1763056240003,-171.71930556,0.00019473,2]
[393871851,1763056240012,-500.0,0.00019538,2]
[393871852,1763056240022,-500.0,0.0001961,2]
[393871853,1763056240032,-628.51,0.00019687,2]
[393871854,1763056240044,-320.98261361,0.00019747,2]
[393871855,1763056240055,-444.74,0.00019818,2]
[393871856,1763056240065,-300.28,0.00019912,2]
[393871857,1763056240075,-28361.9624849,0.00019999,2]
[393871858,1763056240084,-698.59407,0.0002,2]
[393871859,1763056240094,-1000.0,0.00020086,2]
[393871860,1763056240104,-200.0,0.00020126,2]
[393871861,1763056240114,-516.98,0.00020145,2]
[393871862,1763056240124,-1000.0,0.00020158,2]